fUST/lending_fUST_20240609
["ID","MTS","AMOUNT","RATE_DAILY","PERIOD"]
[328864332,1717908633199,-500.0,0.00018639,2]
[328864333,1717908633209,-500.0,0.00018639,2]
[328864334,1717908633220,-1155.05,0.00018639,2]
[328864335,1717908633230,-339.95642621,0.00018639,2]
[328864370,1717908638664,-163.85236983,0.00017006,2]
[328864372,1717908638674,-548.01357379,0.00018639,2]
[328864374,1717908638683,-500.0,0.00018639,2]
[328864376,1717908638694,-500.0,0.00018639,2]
[328864378,1717908638703,-500.0,0.00018639,2]
[328864380,1717908638713,-129.86828992,0.00018639,2]
[328864382,1717908638726,-289.57289787,0.00018639,2]
[328864383,1717908638736,-566.61,0.00018639,2]
[328864385,1717908638746,-500.0,0.00018639,2]
[328864387,1717908638756,-536.59789729,0.00018639,2]
[328864389,1717908638766,-2.19299359,0.00018639,2]
[328864416,1717908642384,-497.80700641,0.00018639,2]
[328864417,1717908642395,-524.19415582,0.00018639,2]
[328864418,1717908642406,-982.49,0.00018639,2]
[328864419,1717908642417,-1039.45484776,0.00018639,2]
[328864422,1717908642706,-3822.17515224,0.00018639,2]
[328864423,1717908642716,-500.0,0.00018639,2]
[328864424,1717908642727,-675.67,0.00018639,2]
[328864425,1717908642737,-1017.98,0.00018639,2]
[328864426,1717908642747,-182.59807939,0.00018639,2]
[328864427,1717908642757,-1106.93,0.00018639,2]
[328864428,1717908642769,-500.0,0.00018639,2]
[328864429,1717908642778,-27157.27979225,0.0001864,2]
[328864430,1717908642788,-242.54624032,0.00018641,2]
[328864431,1717908642798,-155.12229786,0.00018641,2]
[328864432,1717908642808,-16753.23744558,0.00018642,2]
[328864433,1717908642820,-3000.0,0.0001879,2]
[328864434,1717908642831,-3000.0,0.0001879,2]
[328864435,1717908642841,-3000.0,0.0001879,2]
[328864436,1717908642851,-2912.28641828,0.0001879,2]
[328864437,1717908643761,-87.71358172,0.0001879,2]
[328864438,1717908643773,-2339.56281863,0.0001879,2]
[328864444,1717908935580,1103.37197472,0.00015,2]
[328864445,1717909222578,273.37336231,9.9e-05,2]
[328864446,1717909231063,273.37336231,9.9e-05,2]
[328864447,1717909239320,273.37336231,9.9e-05,2]
[328864448,1717909248406,273.37336231,9.9e-05,2]
[328864449,1717909257135,273.37336231,9.9e-05,2]
[328864450,1717909265124,273.37336231,9.9e-05,2]
[328864451,1717909273913,273.37336231,9.9e-05,2]
[328864452,1717909283095,273.37336231,9.9e-05,2]
[328864453,1717909291320,273.37336231,9.9e-05,2]
[328864454,1717909299994,273.37336231,9.9e-05,2]
[328864455,1717909308794,273.37336231,9.9e-05,2]
[328864456,1717909317396,273.37336231,9.9e-05,2]
[328864457,1717909325574,273.37336231,9.9e-05,2]
[328864458,1717909333676,273.37336231,9.9e-05,2]
[328864459,1717909342528,273.37336231,9.9e-05,2]
[328864460,1717909350448,273.37336231,9.9e-05,2]
[328864461,1717909358815,273.37336231,9.9e-05,2]
[328864462,1717909367438,273.37336231,9.9e-05,2]
[328864463,1717909376306,273.37336231,9.9e-05,2]
[328864464,1717909384273,273.37336231,9.9e-05,2]
[328864465,1717909393117,273.37336231,9.9e-05,2]
[328864466,1717909409372,273.37336231,9.9e-05,2]
[328864467,1717909417409,273.37336231,9.9e-05,2]
[328864468,1717909425595,273.37336231,9.9e-05,2]
[328864469,1717909433523,273.37336231,9.9e-05,2]
[328864470,1717909441773,273.37336231,9.9e-05,2]
[328864471,1717909448152,372.64489039,9.999e-05,2]
[328864472,1717909449718,273.37336231,9.9e-05,2]
[328864473,1717909457916,273.37336231,9.9e-05,2]
[328864474,1717909465963,273.37336231,9.9e-05,2]
[328864475,1717909474369,273.37336231,9.9e-05,2]
[328864476,1717909483179,273.37336231,9.9e-05,2]
[328864477,1717909491087,273.37336231,9.9e-05,2]
[328864478,1717909499353,273.37336231,9.9e-05,2]
[328864479,1717909508108,273.37336231,9.9e-05,2]
[328864480,1717909516141,273.37336231,9.9e-05,2]
[328864481,1717909524315,273.37336231,9.9e-05,2]
[328864482,1717909532192,273.37336231,9.9e-05,2]
[328864483,1717909540918,273.37336231,9.9e-05,2]
[328864484,1717909549320,273.37336231,9.9e-05,2]
[328864485,1717909558106,273.37336231,9.9e-05,2]
[328864486,1717909566979,273.37336231,9.9e-05,2]
[328864487,1717909575875,273.37336231,9.9e-05,2]
[328864488,1717909584532,273.37336231,9.9e-05,2]
[328864489,1717909593964,273.37336231,9.9e-05,2]
[328864490,1717909602002,273.37336231,9.9e-05,2]
[328864491,1717909610483,273.37336231,9.9e-05,2]
[328864492,1717909618359,273.37336231,9.9e-05,2]
[328864493,1717909626615,273.37336231,9.9e-05,2]
[328864494,1717909634778,273.37336231,9.9e-05,2]
[328864495,1717909642941,273.37336231,9.9e-05,2]
[328864496,1717909650905,273.37336231,9.9e-05,2]
[328864497,1717909659120,273.37336231,9.9e-05,2]
[328864498,1717909667093,273.37336231,9.9e-05,2]
[328864499,1717909682969,273.37336231,9.9e-05,2]
[328864500,1717909690907,273.37336231,9.9e-05,2]
[328864501,1717909700228,273.37336231,9.9e-05,2]
[328864502,1717909708927,273.37336231,9.9e-05,2]
[328864503,1717909717099,273.37336231,9.9e-05,2]
[328864504,1717909725324,273.37336231,9.9e-05,2]
[328864505,1717909734174,273.37336231,9.9e-05,2]
[328864506,1717909742707,273.37336231,9.9e-05,2]
[328864528,1717909751651,273.37336231,9.9e-05,2]
[328864531,1717909760333,273.37336231,9.9e-05,2]
[328864532,1717909768500,273.37336231,9.9e-05,2]
[328864533,1717909777063,273.37336231,9.9e-05,2]
[328864536,1717909785853,273.37336231,9.9e-05,2]
[328864537,1717909794377,273.37336231,9.9e-05,2]
[328864538,1717909802599,206.89588206,9.9e-05,2]
[328864539,1717909802624,66.47748025,9.9e-05,2]
[328864540,1717909810475,273.37336231,9.9e-05,2]
[328864541,1717909817732,185.35879109,9.999e-05,2]
[328864542,1717909818711,273.37336231,9.9e-05,2]
[328864543,1717909826707,273.37336231,9.9e-05,2]
[328864562,1717909833061,-401.16004719,0.00016438,7]
[328864563,1717909833071,-1448.41180423,0.00017107,2]
[328864564,1717909836039,273.37336231,9.9e-05,2]
[328864573,1717909839459,-1220.05669272,0.00017107,2]
[328864574,1717909839472,-1331.98572635,0.00017107,2]
[328864575,1717909839483,-1988.9231567,0.0001714,2]
[328864576,1717909839494,-105.59672041,0.0001714,2]
[328864593,1717909843241,-54.76456559,0.0001714,2]
[328864594,1717909843252,-2291.7404697,0.000179,2]
[328864595,1717909843262,-307.45579162,0.000179,2]
[328864596,1717909843272,-813.51131713,0.000179,2]
[328864597,1717909843283,-185.55193054,0.00017998,2]
[328864598,1717909843293,-328.27330654,0.00017998,2]
[328864599,1717909843303,-1017.672834,0.00017999,2]
[328864600,1717909843313,-500.0,0.00017999,2]
[328864601,1717909843323,-500.0,0.00017999,2]
[328864602,1717909843334,-500.0,0.00017999,2]
[328864603,1717909843344,-850.97,0.00017999,2]
[328864605,1717909843356,-500.0,0.00017999,2]
[328864606,1717909843366,-500.0,0.00017999,2]
[328864607,1717909843376,-543.0,0.00017999,2]
[328864608,1717909843387,-537.95,0.00017999,2]
[328864609,1717909843397,-500.0,0.00017999,2]
[328864610,1717909843407,-500.0,0.00017999,2]
[328864611,1717909843417,-500.0,0.00017999,2]
[328864612,1717909843427,-941.55,0.00017999,2]
[328864613,1717909843437,-511.36837453,0.00017999,2]
[328864614,1717909843448,-4830.25,0.00017999,2]
[328864615,1717909843458,-500.0,0.00017999,2]
[328864616,1717909843468,-112.35543014,0.00017999,2]
[328864617,1717909844061,273.37336231,9.9e-05,2]
[328864618,1717909844095,-387.64456986,0.00017999,2]
[328864619,1717909844106,-104.13830422,0.00017999,2]
[328864622,1717909846922,-549.10797567,0.00017999,2]
[328864623,1717909853556,273.37336231,9.9e-05,2]
[328864624,1717909862513,273.37336231,9.9e-05,2]
[328864625,1717909870937,273.37336231,9.9e-05,2]
[328864626,1717909880218,273.37336231,9.9e-05,2]
[328864627,1717909889678,273.37336231,9.9e-05,2]
[328864628,1717909897913,273.37336231,9.9e-05,2]
[328864629,1717909906737,273.37336231,9.9e-05,2]
[328864630,1717909914695,273.37336231,9.9e-05,2]
[328864631,1717909922777,273.37336231,9.9e-05,2]
[328864632,1717909930717,273.37336231,9.9e-05,2]
[328864633,1717909940218,273.37336231,9.9e-05,2]
[328864634,1717909948422,273.37336231,9.9e-05,2]
[328864635,1717909954126,155.95520074,9.999e-05,2]
[328864636,1717909954152,368.39405857,9.999e-05,2]
[328864637,1717909956928,273.37336231,9.9e-05,2]
[328864638,1717909964889,273.37336231,9.9e-05,2]
[328864639,1717909973088,273.37336231,9.9e-05,2]
[328864640,1717909981400,273.37336231,9.9e-05,2]
[328864641,1717909990315,273.37336231,9.9e-05,2]
[328864642,1717909998344,273.37336231,9.9e-05,2]
[328864643,1717910006759,273.37336231,9.9e-05,2]
[328864644,1717910014721,273.37336231,9.9e-05,2]
[328864645,1717910022949,273.37336231,9.9e-05,2]
[328864646,1717910025084,2113.53223879,9.999e-05,2]
[328864647,1717910030937,273.37336231,9.9e-05,2]
[328864648,1717910039726,273.37336231,9.9e-05,2]
[328864649,1717910047718,273.37336231,9.9e-05,2]
[328864650,1717910056499,273.37336231,9.9e-05,2]
[328864651,1717910064763,273.37336231,9.9e-05,2]
[328864652,1717910074422,273.37336231,9.9e-05,2]
[328864653,1717910082358,273.37336231,9.9e-05,2]
[328864654,1717910090562,273.37336231,9.9e-05,2]
[328864655,1717910098558,273.37336231,9.9e-05,2]
[328864656,1717910106881,273.37336231,9.9e-05,2]
[328864657,1717910115715,273.37336231,9.9e-05,2]
[328864658,1717910123842,273.37336231,9.9e-05,2]
[328864659,1717910131860,273.37336231,9.9e-05,2]
[328864660,1717910139966,273.37336231,9.9e-05,2]
[328864661,1717910148157,273.37336231,9.9e-05,2]
[328864662,1717910156681,273.37336231,9.9e-05,2]
[328864663,1717910164878,273.37336231,9.9e-05,2]
[328864664,1717910172872,273.37336231,9.9e-05,2]
[328864665,1717910182694,273.37336231,9.9e-05,2]
[328864666,1717910190679,273.37336231,9.9e-05,2]
[328864667,1717910199510,273.37336231,9.9e-05,2]
[328864668,1717910207516,273.37336231,9.9e-05,2]
[328864669,1717910215792,273.37336231,9.9e-05,2]
[328864670,1717910223806,273.37336231,9.9e-05,2]
[328864671,1717910232617,273.37336231,9.9e-05,2]
[328864672,1717910240767,273.37336231,9.9e-05,2]
[328864673,1717910249694,273.37336231,9.9e-05,2]
[328864674,1717910257628,273.37336231,9.9e-05,2]
[328864675,1717910266738,273.37336231,9.9e-05,2]
[328864676,1717910275903,273.37336231,9.9e-05,2]
[328864677,1717910284628,273.37336231,9.9e-05,2]
[328864678,1717910292996,273.37336231,9.9e-05,2]
[328864679,1717910301701,273.37336231,9.9e-05,2]
[328864680,1717910309958,273.37336231,9.9e-05,2]
[328864681,1717910318447,273.37336231,9.9e-05,2]
[328864682,1717910327112,180.18460093,9.9e-05,2]
[328864685,1717910559459,10000.0,0.00015,2]
[328864925,1717911044676,-160.3612866,0.00016616,2]
[328864926,1717911044688,-202.0408015,0.00016815,2]
[328864927,1717911044701,-2682.02554865,0.00016815,2]
[328864928,1717911044712,-809.1220971,0.00016817,2]
[328864929,1717911044724,-163.49930307,0.00016871,2]
[328864930,1717911044735,-101.35388265,0.00016873,2]
[328864931,1717911044798,-491.50218343,0.00016873,2]
[328864932,1717911044809,-151.0,0.00017288,2]
[328864933,1717911044821,-151.0,0.00017498,3]
[328864934,1717911044833,-151.49275624,0.0001757,2]
[328864935,1717911044845,-6207.62728033,0.00017604,2]
[328864950,1717911068014,187.35910095,9.999e-05,2]
[328864951,1717911141427,774.49408999,9.999e-05,2]
[328864953,1717912086656,187.35910095,9.999e-05,2]
[328865036,1717912233031,-276.1139145,0.00017358,2]
[328865039,1717912233042,-19307.52255734,0.00017359,2]
[328865042,1717912233052,-4238.41830585,0.0001736,2]
[328865045,1717912233063,-186.69178053,0.00017398,2]
[328865047,1717912233074,-2071.69601347,0.00017398,2]
[328865049,1717912233084,-190.37021129,0.00017399,2]
[328865052,1717912233094,-656.08968177,0.0001754,2]
[328865053,1717912233104,-621.62833685,0.00017546,2]
[328865055,1717912233114,-158.08246203,0.00017693,2]
[328865057,1717912233123,-153.0,0.000177,2]
[328865058,1717912233133,-151.0,0.00017719,3]
[328865060,1717912233143,-153.0,0.000178,2]
[328865062,1717912233152,-153.0,0.000178,2]
[328865064,1717912233161,-499.4598699,0.000178,2]
[328865066,1717912233171,-153.0,0.000178,2]
[328865068,1717912233181,-306.0,0.000178,2]
[328865070,1717912233191,-153.0,0.000178,2]
[328865072,1717912233201,-153.0,0.000178,2]
[328865074,1717912233211,-154.457605,0.000178,2]
[328865076,1717912233223,-620.29337654,0.00017828,2]
[328865078,1717912233234,-620.29337654,0.00017845,2]
[328865080,1717912233245,-620.29337654,0.00017863,2]
[328865082,1717912233256,-313.9867788,0.00017863,2]
[328865084,1717912233267,-902.32,0.00017899,2]
[328865086,1717912233278,-500.0,0.00017899,2]
[328865088,1717912233288,-500.0,0.00017899,2]
[328865090,1717912233297,-511.83148567,0.00017899,2]
[328865092,1717912233307,-500.0,0.00017899,2]
[328865094,1717912233317,-500.0,0.00017899,2]
[328865096,1717912233326,-500.0,0.00017899,2]
[328865098,1717912233336,-2000.0,0.000179,2]
[328865100,1717912233346,-9715.04137684,0.000179,2]
[328865141,1717912238611,-620.29337654,0.0001788,2]
[328865143,1717912238621,-620.29337654,0.00017897,2]
[328865145,1717912238632,-200.39597614,0.000179,7]
[328865147,1717912238641,-554.18856097,0.000179,2]
[328865148,1717912238654,-16338.5120221,0.000179,2]
[328865149,1717912238666,-8805.34135978,0.000179,2]
[328865180,1717912333974,2036.10483651,9.999e-05,2]
[328865184,1717913301807,165.80260909,9.9e-05,2]
[328865260,1717913439630,-1983.49857414,0.00017606,2]
[328865262,1717913439641,-3325.57337302,0.00017607,2]
[328865264,1717913439656,-1600.31656669,0.00017607,2]
[328865285,1717913439864,-880.09409944,0.00017607,2]
[328865414,1717913444125,-496.36527315,0.00017607,2]
[328865435,1717913444335,-1615.97936346,0.00017607,2]
[328865437,1717913444345,-836.76323084,0.00017719,2]
[328865439,1717913444356,-4238.41830585,0.00017759,2]
[328865441,1717913444366,-411.42673703,0.00017815,2]
[328865443,1717913444377,-7558.07662345,0.00017816,2]
[328865455,1717913447929,-1569.31686901,0.00017775,2]
[328865456,1717913447939,-6242.87587747,0.00017816,2]
[328865457,1717913592689,150.0,0.000188,30]
[328865458,1717913721041,61239.4746519,0.00023,30]
[328865574,1717914644304,-7918.32867576,0.0001622,2]
[328865575,1717914644315,-20935.83304546,0.00016221,2]
[328865637,1717914651256,-3657.81891224,0.00016221,2]
[328865638,1717914651267,-215.631394,0.00016497,2]
[328865639,1717914651278,-925.86785159,0.0001693,2]
[328865640,1717914651288,-153.0,0.00017001,2]
[328865641,1717914651298,-153.0,0.000171,2]
[328865642,1717914651307,-153.0,0.00017178,2]
[328865643,1717914651317,-153.0,0.00017178,2]
[328865644,1717914651327,-153.0,0.000172,2]
[328865645,1717914651337,-410.3096018,0.000172,2]
[328865646,1717914651346,-153.0,0.000172,2]
[328865647,1717914651356,-620.08141684,0.00017502,2]
[328865648,1717914651365,-3168.44831353,0.00017582,2]
[328865649,1717914651375,-161.53985865,0.0001772,3]
[328865650,1717914651384,-864.73,0.00017798,2]
[328865651,1717914651394,-500.0,0.00017798,2]
[328865652,1717914651403,-500.0,0.00017798,2]
[328865653,1717914651412,-129.68329757,0.00017798,2]
[328865654,1717914677537,644.28025677,0.00013367,2]
[328865656,1717914759304,154.98450155,0.00013367,10]
[328865657,1717914773237,189.73511761,0.00013367,10]
[328865658,1717914775056,300.84886661,0.00013367,2]
[328865659,1717914795005,300.16961376,0.00013367,2]
[328865660,1717914817005,303.13691355,0.00013367,2]
[328865661,1717914819174,687.0,0.00023,30]
[328865664,1717915441416,154.98450155,9.999e-05,2]
[328865665,1717915476209,4373.23533584,9.999e-05,2]
[328865711,1717915833529,-154.98450155,0.00016397,2]
[328865712,1717915833539,-2712.03374721,0.00016398,2]
[328865713,1717915833549,-215.631394,0.00016641,2]
[328865714,1717915833558,-153.0,0.00016979,2]
[328865715,1717915833568,-151.0,0.00017785,3]
[328865716,1717915833577,-272.22545223,0.00017794,2]
[328865717,1717915833586,-252.12059862,0.00017795,2]
[328865719,1717915833597,-201.72247781,0.00017796,2]
[328865721,1717915833607,-500.0,0.00017796,2]
[328865723,1717915833616,-500.0,0.00017796,2]
[328865725,1717915833626,-500.0,0.00017796,2]
[328865726,1717915833636,-500.0,0.00017796,2]
[328865728,1717915833646,-200.0,0.00017796,2]
[328865730,1717915833655,-500.0,0.00017796,2]
[328865732,1717915833665,-500.0,0.00017796,2]
[328865733,1717915833675,-158.8,0.00017796,2]
[328865734,1717915833685,-158.8,0.00017796,2]
[328865735,1717915833695,-157.6,0.00017796,2]
[328865736,1717915833705,-500.0,0.00017796,2]
[328865737,1717915833715,-500.0,0.00017796,2]
[328865739,1717915833725,-289.21672722,0.00017796,2]
[328865740,1717915833735,-500.0,0.00017796,2]
[328865741,1717915833745,-500.0,0.00017796,2]
[328865742,1717915833755,-500.0,0.00017796,2]
[328865743,1717915833765,-500.0,0.00017796,2]
[328865744,1717915833774,-1175.29,0.00017796,2]
[328865745,1717915833785,-975.56,0.00017796,2]
[328865746,1717915833795,-500.0,0.00017796,2]
[328865747,1717915833806,-500.0,0.00017796,2]
[328865748,1717915833817,-500.0,0.00017796,2]
[328865749,1717915833828,-500.0,0.00017796,2]
[328865750,1717915833838,-500.0,0.00017796,2]
[328865751,1717915833848,-500.0,0.00017796,2]
[328865752,1717915833858,-871.24,0.00017796,2]
[328865753,1717915833868,-444.9775477,0.00017796,2]
[328865754,1717915833879,-500.0,0.00017796,2]
[328865755,1717915833889,-500.0,0.00017796,2]
[328865756,1717915833903,-500.0,0.00017796,2]
[328865757,1717915833914,-500.0,0.00017796,2]
[328865758,1717915833925,-500.0,0.00017796,2]
[328865759,1717915833936,-369.43,0.00017796,2]
[328865760,1717915833948,-578.84,0.00017796,2]
[328865761,1717915833959,-500.0,0.00017796,2]
[328865762,1717915833969,-874.81,0.00017796,2]
[328865763,1717915833981,-264.04424033,0.00017796,2]
[328865764,1717915833993,-500.0,0.00017796,2]
[328865765,1717915834003,-500.0,0.00017796,2]
[328865766,1717915834013,-500.0,0.00017796,2]
[328865767,1717915834023,-500.0,0.00017796,2]
[328865768,1717915834033,-556.22880052,0.00017796,2]
[328865769,1717915834043,-4628.99,0.00017796,2]
[328865770,1717915834054,-662.8,0.00017796,2]
[328865771,1717915834064,-316.36402455,0.00017796,2]
[328865772,1717915834074,-500.0,0.00017796,2]
[328865773,1717915834084,-5615.84884917,0.00017797,2]
[328865787,1717915839387,-500.0,0.00017796,2]
[328865789,1717915839398,-934.91,0.00017796,2]
[328865790,1717915839410,-517.23649186,0.00017796,2]
[328865791,1717915839421,-500.0,0.00017796,2]
[328865792,1717915839432,-200.39597612,0.00017797,7]
[328865793,1717915839442,-1609.01753202,0.00017797,2]
[328865843,1717915844021,-370.00001,0.00017797,2]
[328865845,1717915844034,-304.52303766,0.00017797,2]
[328865847,1717915844047,-385.989009,0.00017797,2]
[328865849,1717915844059,-394.22731001,0.00017797,2]
[328865871,1717915847162,-1126.32,0.00017796,2]
[328865872,1717915847172,-164.81979722,0.00017797,2]
[328865893,1717916291459,154.98450155,9.999e-05,2]
[328865894,1717916705813,1000.0,0.00025,60]
[328865895,1717916796574,154.98450155,9.999e-05,2]
[328866137,1717917040105,-154.98450155,0.0001703,2]
[328866138,1717917040117,-153.0,0.00017031,2]
[328866139,1717917040129,-153.0,0.00017031,2]
[328866140,1717917040140,-153.0,0.00017031,2]
[328866141,1717917040151,-153.0,0.00017031,2]
[328866142,1717917040163,-153.0,0.00017031,2]
[328866143,1717917040175,-153.0,0.00017031,2]
[328866144,1717917040186,-153.0,0.00017031,2]
[328866145,1717917040198,-153.0,0.00017031,2]
[328866146,1717917040209,-153.0,0.00017031,2]
[328866147,1717917040222,-153.0,0.00017031,2]
[328866148,1717917040233,-153.0,0.00017031,2]
[328866149,1717917040243,-153.0,0.00017031,2]
[328866150,1717917040254,-153.0,0.00017031,2]
[328866151,1717917040264,-153.0,0.00017031,2]
[328866152,1717917040276,-153.0,0.00017031,2]
[328866153,1717917040288,-153.0,0.00017031,2]
[328866154,1717917040298,-153.0,0.00017031,2]
[328866155,1717917040310,-153.0,0.00017031,2]
[328866156,1717917040323,-153.0,0.00017031,2]
[328866157,1717917040335,-153.0,0.00017031,2]
[328866158,1717917040347,-153.0,0.00017031,2]
[328866159,1717917040360,-153.0,0.00017031,2]
[328866160,1717917040375,-153.0,0.00017031,2]
[328866161,1717917040386,-153.0,0.00017031,2]
[328866162,1717917040398,-153.0,0.00017039,2]
[328866163,1717917040410,-153.0,0.00017039,2]
[328866164,1717917040424,-153.0,0.00017039,2]
[328866165,1717917040436,-153.0,0.00017039,2]
[328866166,1717917040448,-153.0,0.00017039,2]
[328866167,1717917040462,-153.0,0.00017039,2]
[328866168,1717917040475,-153.0,0.00017039,2]
[328866169,1717917040486,-153.0,0.00017039,2]
[328866170,1717917040496,-153.0,0.00017039,2]
[328866171,1717917040506,-153.0,0.00017039,2]
[328866172,1717917040516,-153.0,0.00017039,2]
[328866173,1717917040527,-153.0,0.00017039,2]
[328866174,1717917040537,-153.0,0.00017039,2]
[328866175,1717917040549,-153.0,0.00017039,2]
[328866176,1717917040560,-153.0,0.00017039,2]
[328866177,1717917040573,-153.0,0.00017039,2]
[328866178,1717917040586,-153.0,0.00017039,2]
[328866179,1717917040599,-153.0,0.00017039,2]
[328866180,1717917040611,-153.0,0.00017039,2]
[328866181,1717917040623,-153.0,0.00017039,2]
[328866182,1717917040635,-153.0,0.00017039,2]
[328866183,1717917040645,-153.0,0.00017039,2]
[328866184,1717917040655,-153.0,0.00017039,2]
[328866185,1717917040665,-153.0,0.00017039,2]
[328866186,1717917040677,-153.0,0.00017039,2]
[328866187,1717917040688,-153.0,0.00017039,2]
[328866188,1717917040700,-153.0,0.00017039,2]
[328866189,1717917040711,-153.0,0.00017043,2]
[328866190,1717917040723,-153.0,0.00017043,2]
[328866191,1717917040738,-153.0,0.00017043,2]
[328866192,1717917040749,-153.0,0.00017043,2]
[328866193,1717917040760,-153.0,0.00017043,2]
[328866194,1717917040772,-153.0,0.00017043,2]
[328866195,1717917040783,-153.0,0.00017043,2]
[328866196,1717917040794,-153.0,0.00017043,2]
[328866197,1717917040806,-153.0,0.00017043,2]
[328866198,1717917040817,-153.0,0.00017043,2]
[328866199,1717917040829,-153.0,0.00017043,2]
[328866200,1717917040840,-153.0,0.00017043,2]
[328866201,1717917040852,-153.0,0.00017043,2]
[328866202,1717917040863,-153.0,0.00017043,2]
[328866203,1717917040874,-153.0,0.00017043,2]
[328866204,1717917040885,-153.0,0.00017043,2]
[328866205,1717917040895,-153.0,0.00017043,2]
[328866206,1717917040906,-153.0,0.00017043,2]
[328866207,1717917040917,-153.0,0.00017043,2]
[328866208,1717917040928,-153.0,0.00017043,2]
[328866209,1717917040939,-153.0,0.00017043,2]
[328866210,1717917040950,-153.0,0.00017043,2]
[328866211,1717917040961,-153.0,0.00017043,2]
[328866212,1717917040972,-153.0,0.00017043,2]
[328866213,1717917040983,-153.0,0.00017043,2]
[328866214,1717917040993,-153.0,0.00017043,2]
[328866215,1717917041004,-153.0,0.00017043,2]
[328866216,1717917041015,-3905.33837828,0.00017375,2]
[328866217,1717917041026,-349.88491759,0.00017696,2]
[328866218,1717917041036,-1153.19543087,0.00017696,2]
[328866219,1717917041050,-100.08212262,0.00017696,2]
[328866220,1717917041061,-349.88491756,0.00017722,2]
[328866221,1717917041071,-349.88491756,0.00017748,2]
[328866222,1717917041082,-349.88491756,0.00017774,2]
[328866223,1717917041093,-272.44632851,0.00017794,2]
[328866224,1717917041104,-30.61653614,0.00017795,2]
[328866235,1717917045522,-153.07186585,0.00017795,2]
[328866236,1717917045532,-412.41132344,0.00017795,2]
[328866237,1717917045542,-155.29653524,0.00017795,2]
[328866238,1717917045552,-500.0,0.00017796,2]
[328866239,1717917045561,-373.56095616,0.00017796,2]
[328866240,1717917045571,-507.95921448,0.00017796,2]
[328866241,1717917045580,-504.54056394,0.00017796,2]
[328866242,1717917045591,-151.0,0.00017796,2]
[328866243,1717917045601,-151.0,0.00017796,2]
[328866244,1717917045610,-151.0,0.00017796,2]
[328866245,1717917045620,-151.0,0.00017796,2]
[328866246,1717917045629,-500.0,0.00017796,2]
[328866247,1717917045639,-437.87232162,0.00017796,2]
[328866248,1717917045652,-62.12767838,0.00017796,2]
[328866249,1717917045662,-500.0,0.00017796,2]
[328866250,1717917045671,-151.0,0.00017796,2]
[328866251,1717917045681,-500.0,0.00017796,2]
[328866252,1717917045691,-500.0,0.00017796,2]
[328866253,1717917045701,-500.0,0.00017796,2]
[328866254,1717917045711,-151.0,0.00017796,2]
[328866255,1717917045720,-151.0,0.00017796,2]
[328866256,1717917045730,-151.0,0.00017796,2]
[328866257,1717917045740,-151.0,0.00017796,2]
[328866258,1717917045750,-528.62560314,0.00017796,2]
[328866259,1717917045761,-500.0,0.00017796,2]
[328866260,1717917045771,-834.94,0.00017796,2]
[328866261,1717917045781,-151.0,0.00017796,2]
[328866262,1717917045790,-151.0,0.00017796,2]
[328866263,1717917045800,-500.0,0.00017796,2]
[328866264,1717917045811,-159.563456,0.00017796,2]
[328866265,1717917045820,-500.0,0.00017796,2]
[328866266,1717917045831,-554.72,0.00017796,2]
[328866267,1717917045841,-151.0,0.00017796,2]
[328866268,1717917045851,-151.0,0.00017796,2]
[328866269,1717917045860,-151.0,0.00017796,2]
[328866270,1717917045870,-151.0,0.00017796,2]
[328866271,1717917045880,-169.58133,0.00017796,2]
[328866272,1717917045889,-497.08637601,0.00017796,2]
[328866282,1717917074989,573.87,0.00010959,2]
[328866283,1717917180457,2113.53223879,9.999e-05,2]